[Event "87th Tata Steel Masters 2025"]
[White "Praggnanandhaa,Rameshbabu"]
[Black "Mendonca,Leon Luke"]
[Site "Wijk aan Zee"]
[Round "4.5"]
[Annotator "TA"]
[Result "1-0"]
[Date "2025.01.21"]
[WhiteElo "2741"]
[BlackElo "2639"]
[PlyCount "91"]
[TimeControl "60"]

{[%evp 12,91,7,20,21,17,16,22,22,10,33,37,25,18,48,50,79,62,54,43,68,77,112,62,62,55,60,59,81,96,115,101,119,101,120,111,107,95,191,168,187,172,214,218,263,266,266,243,290,263,267,185,232,220,226,201,362,353,355,343,299,314,388,382,370,351,347,347,543,537,763,403,433,406,542,440,468,462,457,447,526,518]} 1. e4 {[%emt 0:1:5]} e5 {[%emt 0:2:54]} 2. Nf3 {[%emt 0:0:8]} Nc6 {[%emt 0:0:7]} 3. Bb5 {[%emt 0:5:59]} a6 {[%emt 0:0:41]} 4. Ba4 {[%emt 0:0:7]} Nf6 {[%emt 0:0:20]} 5. d3 {[%emt 0:1:18]} b5 {[%emt 0:1:8]} 6. Bb3 {[%emt 0:1:5]} Bc5 {[%emt 0:1:0]} 7. Bg5 {[%emt 0:5:15]} h6 {[%emt 0:2:25]} 8. Bh4 {[%emt 0:2:12]} d6 {[%emt 0:0:37]} 9. c3 {[%emt 0:0:9]} Bb6 {[%emt 0:4:37] The position is equal.} 10. a4 {[%emt 0:1:57]} Rb8 {[%emt 0:11:11]} 11. axb5 {[%emt 0:3:14]} axb5 {[%emt 0:0:7]} 12. Na3 {[%emt 0:0:58]} b4 {[%emt 0:3:39]} 13. Nc4 {[%emt 0:17:12]} bxc3 {[%emt 0:2:4]} 14. bxc3 {[%emt 0:0:8]} O-O {[%emt 0:26:38]} 15. O-O {[%emt 0:6:51]} Kh8 {[%emt 0:8:57]} 16. Ba4 {[%emt 0:7:41]} Bd7 {[%emt 0:2:36]} 17. Rb1 {[%emt 0:4:22]} (17. d4 $16 )g5 {[%emt 0:9:18]} 18. Bg3 {[%emt 0:8:7]} Ba7 {[%emt 0:15:8]} 19. Ra1 {[%emt 0:11:19] [#] aiming for Bxc6.} Bb6 {[%emt 0:2:35] White leaves nothing to chance now.} 20. Re1 {[%emt 0:0:56]} Ne7 {[%emt 0:5:20]} 21. d4 {[%emt 0:2:14]} Bxa4 {[%emt 0:2:1]} 22. Rxa4 {[%emt 0:0:47]} exd4 {[%emt 0:0:50]} 23. cxd4 {[%emt 0:7:53]} Ng6 {[%emt 0:0:8]} 24. e5 {[%emt 0:3:14] And now Nxb6 would win. White is much more active.} Nh5 {[%emt 0:4:51]} (24... Nd5 $16 {was worth a try.} )25. exd6 $18 {[%emt 0:1:12]} Nxg3 {[%emt 0:0:5]} 26. dxc7 {[%emt 0:0:35]} (26. fxg3 cxd6 27. h3 Bc7 $16 )Qxc7 {[%emt 0:0:45]} 27. hxg3 {[%emt 0:0:10]} Rbe8 {[%emt 0:2:27]} 28. Ne3 {[%emt 0:4:9]} Qd7 {[%emt 0:0:23]} 29. Qa1 {[%emt 0:2:32]} Kh7 {[%emt 0:0:55]} 30. Ra6 {[%emt 0:1:17]} Rb8 {[%emt 0:0:56]} 31. Nc4 {[%emt 0:3:7]} Bc7 {[%emt 0:0:36]} (31... Qb5 $142 )32. Ra7 {[%emt 0:1:17]} Qc6 {[%emt 0:0:30]} 33. Rc1 {[%emt 0:2:57]} Ra8 $2 {[%emt 0:0:19] [#]} (33... Rb7 {is a better defense.} 34. Rxb7 Qxb7 )34. d5 $1 {[%emt 0:1:17][%cal Yd4d5,Yd5d6][%mdl 544]} Rxa7 {[%emt 0:0:50]} 35. Qxa7 {[%emt 0:0:32]} (35. dxc6 Rxa1 36. Rxa1 Bb8 $11 )Ra8 {[%emt 0:0:19]} 36. Qd4 {[%emt 0:0:19] Dodges Qxc4} Qd7 {[%emt 0:0:32]} 37. d6 {[%emt 0:1:37][%cal Yd4d5] Hoping for Qd5!} Bd8 {[%emt 0:0:5]} 38. Nce5 {[%emt 0:1:26] Excellent horsemanship.} Qe6 {[%emt 0:1:1]} 39. Nxg6 {[%emt 0:0:6]} fxg6 {[%emt 0:0:33]} (39... Qxg6 $142 40. Ne5 Qf5 41. Nxf7 Bf6 )40. Re1 {[%emt 0:2:51]} Qf7 {[%emt 0:4:54]} 41. Qe4 {[%emt 0:7:19]} Ra7 {[%emt 0:4:15]} 42. Ne5 {[%emt 0:2:12]} Qe6 {[%emt 0:4:7]} 43. Nc6 {[%emt 0:1:36] White is clearly winning.} Qxe4 {[%emt 0:0:12]} 44. Rxe4 {[%emt 0:0:2]} Rd7 {[%emt 0:2:14]} 45. Re6 {[%emt 0:1:6] Inhibits Bf6.} h5 {[%emt 0:2:5]} 46. Kh2 {[%emt 0:1:51] Weighted Error Value: White=0.23 (precise) /Black=0.34.  Mistake:       	White=1     	Black=4      Inaccurate:     	White=2     	Black=5      OK:         	White=16    	Black=9      Best:        	White=1     	Black=2} 1-0

[Event "87th Tata Steel Masters 2025"]
[White "Keymer,Vincent"]
[Black "Van Foreest,Jorden"]
[Site "Wijk aan Zee"]
[Round "4.6"]
[Annotator "TA"]
[Result "1/2-1/2"]
[Date "2025.01.21"]
[WhiteElo "2733"]
[BlackElo "2680"]
[PlyCount "115"]
[TimeControl "60"]

{[%evp 13,115,0,0,0,26,29,23,23,24,21,28,24,32,8,36,39,90,37,62,41,39,40,28,8,0,0,20,0,12,0,0,0,0,0,0,0,0,0,0,0,0,0,2,0,4,5,7,0,0,0,0,0,0,0,0,0,0,0,0,0,0,0,0,0,0,0,0,-8,-8,-8,0,0,0,0,0,0,0,0,0,0,0,0,0,0,8,8,8,8,8,0,8,8,8,0,0,0,0,0,0,0,8,8,8,0]} 1. d4 {[%emt 0:0:4]} d5 {[%emt 0:0:13]} 2. c4 {[%emt 0:0:5]} e6 {[%emt 0:0:11]} 3. Nc3 {[%emt 0:0:5]} Be7 {[%emt 0:0:32]} 4. cxd5 {[%emt 0:1:16]} exd5 {[%emt 0:0:11]} 5. Bf4 {[%emt 0:0:6]} Nf6 {[%emt 0:1:6]} 6. e3 {[%emt 0:0:48]} Bf5 {[%emt 0:0:46]} 7. Nf3 {[%emt 0:11:13]} c6 {[%emt 0:1:55]} 8. Nh4 {[%emt 0:10:21]} Bg6 {[%emt 0:13:52]} 9. h3 {[%emt 0:7:13]} Nbd7 {[%emt 0:1:39][%cal Yb8d7,Yd7f8,Yf8e6][%mdl 32]} 10. Nxg6 {[%emt 0:4:56]} hxg6 {[%emt 0:0:10]} 11. Bd3 {[%emt 0:5:27]} Nf8 {[%emt 0:3:24]} 12. Qb3 {[%emt 0:0:6]} Qb6 {[%emt 0:1:40]} 13. Qc2 {[%emt 0:1:17]} Ne6 {[%emt 0:1:32]} 14. Be5 {[%emt 0:0:49]} O-O {[%emt 0:5:43] [#]} (14... Ng4 $14 )15. O-O-O {[%emt 0:5:28]} ({White should play} 15. h4 $1 $16 )Rac8 {[%emt 0:2:1]} 16. Kb1 {[%emt 0:3:45]} Rfd8 $1 {[%emt 0:0:15]} 17. Be2 {[%emt 0:14:42]} Nd7 {[%emt 0:16:24]} 18. Bg3 {[%emt 0:0:54]} Nf6 $1 {[%emt 0:0:9]} 19. Be5 {[%emt 0:9:49]} Nd7 {[%emt 0:0:40]} 20. Bg3 {[%emt 0:0:3]} Nf6 $1 {[%emt 0:0:7]} 21. Bg4 {[%emt 0:0:7]} c5 $1 {[%emt 0:1:33]} 22. dxc5 {[%emt 0:3:28]} Rxc5 {[%emt 0:1:7] And now ...d4 would win.} 23. Qb3 {[%emt 0:1:47]} Qxb3 {[%emt 0:4:32]} 24. axb3 {[%emt 0:0:1]} Nxg4 {[%emt 0:2:17]} 25. hxg4 {[%emt 0:0:2]} d4 {[%emt 0:10:4]} 26. exd4 {[%emt 0:0:5]} Nxd4 {[%emt 0:0:54]} 27. Rhe1 {[%emt 0:3:4]} Ne6 {[%emt 0:1:1]} 28. f3 {[%emt 0:11:53]} a6 {[%emt 0:1:43]} 29. Rxd8+ {[%emt 0:5:7]} Bxd8 {[%emt 0:0:11]} 30. Rd1 {[%emt 0:0:13]} Bc7 {[%emt 0:7:18]} 31. Bxc7 {[%emt 0:2:4]} Rxc7 $11 {[%emt 0:0:15][%mdl 4096] Endgame KRN-KRN} 32. Nd5 {[%emt 0:0:1]} Rc5 $1 {[%emt 0:0:5]} 33. b4 {[%emt 0:0:4]} Rc4 {[%emt 0:0:34]} 34. b3 {[%emt 0:1:31]} Rd4 {[%emt 0:0:15]} 35. Rxd4 {[%emt 0:0:13]} Nxd4 {[%emt 0:0:5] KN-KN} 36. Kb2 {[%emt 0:0:5]} Kf8 {[%emt 0:9:42]} 37. Kc3 {[%emt 0:0:6]} Ne6 {[%emt 0:0:5]} 38. b5 {[%emt 0:7:27]} axb5 {[%emt 0:0:6]} 39. Kb4 {[%emt 0:0:0]} Nd4 {[%emt 0:5:6]} 40. Nc3 {[%emt 0:2:27]} Ke7 {[%emt 0:0:47]} 41. Nxb5 {[%emt 0:50:23]} Ne6 {[%emt 0:56:44]} 42. Ka5 {[%emt 0:0:0]} Nf4 {[%emt 0:0:0]} 43. g3 {[%emt 0:0:0]} Nd5 {[%emt 0:0:0]} 44. Na3 {[%emt 0:0:0]} Kd6 {[%emt 0:0:0]} 45. Kb5 {[%emt 0:0:0]} f5 {[%emt 0:0:0]} 46. Nc4+ {[%emt 0:0:0]} Ke6 {[%emt 0:0:0]} 47. g5 {[%emt 0:0:0]} f4 {[%emt 0:0:0]} 48. g4 {[%emt 0:0:0]} Nc3+ {[%emt 0:0:0]} 49. Kc5 {[%emt 0:0:0]} ({Resist} 49. Kb6 $6 Kd5 $16 )Ne2 {[%emt 0:1:6]} 50. b4 {[%emt 0:0:0]} Nc1 {[%emt 0:3:35]} 51. Nb2 {[%emt 0:3:43]} Nb3+ {[%emt 0:3:13]} 52. Kb6 {[%emt 0:0:0][%cal Yb2d3]} Nd4 {[%emt 0:0:43]} 53. Kxb7 {[%emt 0:2:42] Black must now prevent Ka6.} Kd5 {[%emt 0:0:44]} 54. Kc7 {[%emt 0:1:46]} Nxf3 {[%emt 0:0:32]} 55. Nd3 {[%emt 0:0:36]} Kc4 {[%emt 0:0:5]} 56. Nxf4 {[%emt 0:0:4]} Nxg5 {[%emt 0:0:25]} 57. Nxg6 {[%emt 0:0:5]} Kxb4 {[%emt 0:0:31]} 58. Kd7 {[%emt 0:0:18]} 1/2-1/2

[Event "87th Tata Steel Masters 2025"]
[White "Erigaisi,Arjun Kumar"]
[Black "Fedoseev,Vladimir"]
[Site "Wijk aan Zee"]
[Round "4.7"]
[Annotator "TA"]
[Result "0-1"]
[Date "2025.01.21"]
[WhiteElo "2801"]
[BlackElo "2717"]
[PlyCount "78"]
[TimeControl "60"]

{[%evp 9,78,14,16,0,21,0,11,25,16,9,16,-17,13,16,7,8,11,0,30,22,0,-108,-127,-112,-122,-148,-144,-171,-66,-62,0,0,103,111,142,116,79,75,214,216,205,181,180,22,18,-303,-312,-311,-314,-298,-353,-361,-366,-341,-308,-351,-322,-351,-343,-377,-371,-368,-361,-514,-518,-526,-519,-737,-723,-960,-1118]} 1. d4 {[%emt 0:1:4]} Nf6 {[%emt 0:1:1]} 2. c4 {[%emt 0:0:8]} e6 {[%emt 0:0:11]} 3. Nf3 {[%emt 0:0:7]} d5 {[%emt 0:2:42]} 4. Nc3 {[%emt 0:0:8]} Be7 {[%emt 0:1:57]} 5. cxd5 {[%emt 0:2:44]} exd5 {[%emt 0:1:12]} 6. Bf4 {[%emt 0:0:7]} Bd6 {[%emt 0:2:43]} 7. e3 {[%emt 0:4:8]} Bxf4 {[%emt 0:5:39]} 8. exf4 {[%emt 0:0:7]} O-O {[%emt 0:5:10]} 9. Ne5 {[%emt 0:0:50] Prevents Bg4} Nc6 {[%emt 0:1:12]} 10. f3 {[%emt 0:23:23]} Be6 {[%emt 0:14:7]} 11. Qd2 {[%emt 0:8:38]} Nxe5 {[%emt 0:4:11]} 12. dxe5 {[%emt 0:3:16]} Nd7 {[%emt 0:1:8]} 13. O-O-O {[%emt 0:1:13]} (13. Nxd5 Nxe5 14. fxe5 Qxd5 $17 (14... Bxd5 15. Bd3 $15 ))c6 {[%emt 0:0:57]} 14. g4 {[%emt 0:15:40]} f5 {[%emt 0:0:18]} 15. Ne2 {[%emt 0:0:46]} (15. Rg1 $11 )fxg4 $17 {[%emt 0:9:30]} 16. Nd4 {[%emt 0:0:20]} Qe7 $1 {[%emt 0:0:42]} 17. Rg1 {[%emt 0:10:47]} gxf3 {[%emt 0:9:48]} 18. Bd3 {[%emt 0:0:17][%cal Yf4f5]} Kh8 {[%emt 0:5:28]} (18... Nc5 $1 $19 {[%cal Rc5d3] And now ...Nxd3+ would win.} 19. f5 Nxd3+ 20. Qxd3 f2 21. Nxe6 (21. fxe6 $2 fxg1=N 22. Rxg1 Rf2 $19 )fxg1=B 22. Rxg1 Rf7 )19. Bc2 $15 {[%emt 0:6:35][%cal Yd1f1]} c5 {[%emt 0:7:54]} ({Better is} 19... Rae8 $15 )20. Nxf3 $11 {[%emt 0:0:46]} (20. Nxe6 Qxe6 21. Kb1 (21. Qxd5 Qxd5 22. Rxd5 Nb6 $17 )Rae8 $17 )Nb6 {[%emt 0:1:31]} (20... d4 $11 )21. Rg5 $1 $16 {[%emt 0:4:25][%mdl 1024] White has strong compensation.} Nc4 {[%emt 0:4:14]} 22. Qd3 {[%emt 0:0:22][%csl Gc2][%cal Rd3h7]} g6 {[%emt 0:0:55]} (22... Rxf4 23. Qxh7# )23. Nh4 $1 {[%emt 0:0:34][%cal Yh4g6]} Qf7 {[%emt 0:8:15] [#]} (23... Rxf4 24. Nxg6+ hxg6 25. Qxg6 Rh4 26. Rh5+ Rxh5 27. Qxh5+ Kg7 28. Rg1+ )(23... Rg8 $16 )24. Rf1 $1 $18 {[%emt 0:1:15]} Rg8 {[%emt 0:2:54] [#]} 25. Qg3 $1 {[%emt 0:4:29][%cal Rh4g6] and Nxg6+! would now be decisive} Bf5 {[%emt 0:0:41]} 26. Bxf5 $2 {[%emt 0:1:50]} (26. Nxf5 $18 gxf5 27. b3 (27. Bxf5 $2 {is the wrong capture.} Qxf5 28. Rxf5 Rxg3 $19 ))gxf5 $11 {[%emt 0:0:6]} 27. Nxf5 $2 {[%emt 0:3:8][%mdl 8192] [#]} (27. Re1 $11 {and White stays safe.} )Qxf5 $1 $19 {[%emt 0:0:6][%mdl 512]} 28. Rxf5 {[%emt 0:0:48] Intending Rg5 and mate.} Rxg3 {[%emt 0:0:20]} 29. hxg3 $18 {[%emt 0:0:7][%mdl 4096] Endgame KRR-KRN} Ne3 $1 {[%emt 0:0:3][%csl Yf1,Yf5]} 30. Rg5 {[%emt 0:3:19]} Nxf1 $19 {[%emt 0:0:21] KRN-KR} 31. e6 {[%emt 0:2:1]} Ne3 {[%emt 0:8:24]} 32. Re5 {[%emt 0:3:43]} d4 {[%emt 0:1:26]} 33. Rxc5 {[%emt 0:0:8]} b6 {[%emt 0:0:46]} 34. Rh5 {[%emt 0:1:24]} Kg7 {[%emt 0:1:15]} 35. Kd2 {[%emt 0:0:20]} Re8 {[%emt 0:0:57]} 36. f5 {[%emt 0:0:31]} (36. Kd3 $142 )Kf6 {[%emt 0:0:39]} 37. Rxh7 {[%emt 0:0:6]} Nxf5 {[%emt 0:1:10]} 38. Rxa7 {[%emt 0:0:7]} Rxe6 {[%emt 0:0:30]} 39. g4 {[%emt 0:0:8]} Nh4 {[%emt 0:0:9]} 0-1

[Event "87th Tata Steel Masters 2025"]
[White "Mendonca,Leon Luke"]
[Black "Erigaisi,Arjun Kumar"]
[Site "Wijk aan Zee"]
[Round "5.1"]
[Annotator "TA"]
[Result "1/2-1/2"]
[Date "2025.01.22"]
[WhiteElo "2639"]
[BlackElo "2801"]
[PlyCount "60"]
[TimeControl "60"]

{[%evp 14,60,33,30,96,92,85,101,96,79,109,87,108,87,102,101,105,100,108,108,89,107,120,112,117,122,123,125,127,129,136,112,136,0,129,0,142,129,134,123,130,127,121,0,125,0,134,0,137]} 1. d4 {[%emt 0:0:6]} Nf6 {[%emt 0:0:7]} 2. c4 {[%emt 0:0:25]} e6 {[%emt 0:0:6]} 3. Nf3 {[%emt 0:0:11]} c5 {[%emt 0:0:8]} 4. d5 {[%emt 0:0:25]} b5 {[%emt 0:0:8]} 5. Bg5 {[%emt 0:7:7]} exd5 {[%emt 0:0:24]} 6. cxd5 {[%emt 0:1:13]} h6 {[%emt 0:0:8]} 7. Bxf6 {[%emt 0:1:51]} Qxf6 {[%emt 0:0:8]} 8. Qc2 {[%emt 0:3:10]} g5 {[%emt 0:24:57]} (8... Be7 $11 {keeps the balance.} )9. Nc3 $16 {[%emt 0:6:10]} Bg7 {[%emt 0:0:21]} 10. Nxb5 {[%emt 0:4:41]} Na6 {[%emt 0:0:22][%cal Ya8b8,Yb8a6,Ya6c7,Yc7b5][%mdl 32] Prevents Nc7+.} 11. e3 {[%emt 0:6:17]} O-O {[%emt 0:4:37] [#]} 12. a3 $1 {[%emt 0:2:27] Prevents Nb4. White is more active.} d6 {[%emt 0:6:29][%cal Ya8b8]} 13. Bd3 {[%emt 0:3:10]} Bd7 {[%emt 0:4:27][%cal Ya8b8]} 14. Nc3 {[%emt 0:4:24]} Nc7 {[%emt 0:0:8]} 15. O-O {[%emt 0:0:47]} Rab8 {[%emt 0:0:6]} 16. Nd2 {[%emt 0:6:47][%cal Yf3d2,Yd2c4,Yc4a5][%mdl 32]} Qe7 {[%emt 0:1:51]} 17. e4 {[%emt 0:10:6]} a6 {[%emt 0:2:27]} 18. Rab1 {[%emt 0:2:4]} Nb5 {[%emt 0:0:57]} 19. Ne2 {[%emt 0:1:29]} Kh8 {[%emt 0:14:51]} 20. Nc4 {[%emt 0:3:5]} Nd4 {[%emt 0:1:24]} 21. Nxd4 {[%emt 0:0:19]} Bxd4 {[%emt 0:0:5]} 22. Na5 {[%emt 0:17:0][%cal Yb2b4]} Rb6 {[%emt 0:10:34]} 23. Nc4 {[%emt 0:2:8]} Rbb8 {[%emt 0:0:34]} 24. Na5 {[%emt 0:6:52]} Rb6 $1 {[%emt 0:0:17]} 25. b3 {[%emt 0:8:23]} Qf6 {[%emt 0:2:27]} 26. Kh1 {[%emt 0:1:43]} Rfb8 {[%emt 0:0:39]} 27. Nc4 {[%emt 0:5:14]} R6b7 {[%emt 0:0:5]} 28. Na5 {[%emt 0:0:44]} Rb6 {[%emt 0:0:6]} 29. Nc4 {[%emt 0:1:51]} R6b7 {[%emt 0:0:5]} 30. Na5 {[%emt 0:1:6]} Rb6 {[%emt 0:0:26]} 1/2-1/2

[Event "87th Tata Steel Masters 2025"]
[White "Wei,Yi"]
[Black "Harikrishna,Pentala"]
[Site "Wijk aan Zee"]
[Round "5.2"]
[Annotator "TA"]
[Result "1/2-1/2"]
[Date "2025.01.22"]
[WhiteElo "2751"]
[BlackElo "2695"]
[PlyCount "44"]
[TimeControl "60"]

{[%evp 16,44,14,-8,-19,-26,-22,-27,-9,-48,-48,-41,-52,-50,-44,-50,-17,-21,-16,-14,0,0,0,0,0,0,0,0,0,0,145]} 1. e4 {[%emt 0:0:5]} e6 {[%emt 0:0:5]} 2. d4 {[%emt 0:0:14]} d5 {[%emt 0:0:5]} 3. Nc3 {[%emt 0:6:12]} Nf6 {[%emt 0:0:12]} 4. e5 {[%emt 0:0:8]} Nfd7 {[%emt 0:0:6]} 5. f4 {[%emt 0:0:18]} c5 {[%emt 0:0:9]} 6. Nf3 {[%emt 0:1:19]} Nc6 {[%emt 0:0:51]} 7. Be3 {[%emt 0:0:10]} a6 {[%emt 0:0:14]} 8. Qd2 {[%emt 0:6:19]} b5 {[%emt 0:0:28]} 9. h4 {[%emt 0:2:10]} Bb7 {[%emt 0:6:53]} 10. Bd3 {[%emt 0:6:5]} b4 {[%emt 0:6:49] Hoping for ...cxd4.} 11. Na4 {[%emt 0:4:52][%cal Ra4c5]} Nxd4 {[%emt 0:1:57]} 12. Nxd4 {[%emt 0:5:47]} cxd4 {[%emt 0:0:24]} 13. Bxd4 {[%emt 0:0:3]} Bc6 {[%emt 0:0:13]} 14. b3 {[%emt 0:0:11]} Bxa4 {[%emt 0:12:3]} 15. bxa4 {[%emt 0:0:5]} Bc5 {[%emt 0:2:1]} 16. Bxc5 {[%emt 0:2:24]} Nxc5 {[%emt 0:0:48]} 17. Qxb4 {[%emt 0:0:5]} Nxd3+ {[%emt 0:0:25]} 18. cxd3 {[%emt 0:0:4] and Rb1 should not be overlooked} Rb8 {[%emt 0:0:7]} 19. Qc5 {[%emt 0:1:38]} Rc8 {[%emt 0:0:30]} 20. Qb4 {[%emt 0:0:5]} Rb8 {[%emt 0:0:12]} 21. Qc5 {[%emt 0:1:40]} Rc8 {[%emt 0:0:20]} 22. Qb4 {[%emt 0:0:4]} Ra8 {[%emt 0:1:8]} (22... Rb8 $11 {keeps the balance.} 23. Qc5 )1/2-1/2

[Event "87th Tata Steel Masters 2025"]
[White "Fedoseev,Vladimir"]
[Black "Caruana,Fabiano"]
[Site "Wijk aan Zee"]
[Round "5.3"]
[Annotator "TA"]
[Result "1-0"]
[Date "2025.01.22"]
[WhiteElo "2717"]
[BlackElo "2803"]
[PlyCount "119"]
[TimeControl "60"]

{[%evp 46,119,21,19,27,22,25,24,23,27,35,18,15,17,32,4,6,3,16,20,46,0,38,37,41,19,62,0,0,0,0,0,0,0,0,0,23,20,130,154,133,122,225,210,294,270,291,266,277,281,407,445,426,422,435,419,477,435,514,508,495,495,699,697,683,644,718,658,754,747,733,728,1209,1127,819,814]} 1. d4 {[%emt 0:0:25]} d5 {[%emt 0:0:7]} 2. c4 {[%emt 0:0:32]} e6 {[%emt 0:0:6]} 3. Nf3 {[%emt 0:0:33]} Nf6 {[%emt 0:0:6]} 4. Nc3 {[%emt 0:0:20]} Bb4 {[%emt 0:0:8]} 5. Bg5 {[%emt 0:0:45]} h6 {[%emt 0:0:34]} 6. Bxf6 {[%emt 0:0:21]} Qxf6 {[%emt 0:0:6]} 7. Qa4+ {[%emt 0:0:9]} Nc6 {[%emt 0:0:7]} 8. e3 {[%emt 0:0:7]} O-O {[%emt 0:0:20]} 9. Be2 {[%emt 0:0:6]} dxc4 {[%emt 0:0:29]} 10. O-O {[%emt 0:3:8]} Qe7 {[%emt 0:0:27]} 11. Bxc4 {[%emt 0:6:55]} Na5 {[%emt 0:0:15]} 12. Bd3 {[%emt 0:0:10]} Bxc3 {[%emt 0:0:8]} 13. bxc3 {[%emt 0:0:6]} b6 {[%emt 0:0:6]} 14. Qb4 {[%emt 0:4:1]} Qd6 {[%emt 0:0:19]} 15. Rfd1 {[%emt 0:5:43]} Bb7 {[%emt 0:0:37]} 16. Rac1 {[%emt 0:1:26]} Rac8 {[%emt 0:2:1]} 17. Qxd6 {[%emt 0:5:9]} cxd6 {[%emt 0:0:12]} 18. Nd2 {[%emt 0:0:3]} Rc7 {[%emt 0:11:47]} 19. Rc2 {[%emt 0:1:1]} Rfc8 {[%emt 0:3:30]} 20. Rdc1 {[%emt 0:0:6]} Kf8 {[%emt 0:0:28]} 21. f3 {[%emt 0:3:20]} Ke7 {[%emt 0:0:51]} 22. e4 {[%emt 0:3:5]} g5 {[%emt 0:13:39]} 23. Kf2 {[%emt 0:4:8]} e5 {[%emt 0:6:26]} 24. Nf1 {[%emt 0:7:59]} exd4 {[%emt 0:1:10]} 25. cxd4 {[%emt 0:0:50]} Rxc2+ {[%emt 0:0:3]} 26. Rxc2 {[%emt 0:0:6]} Rxc2+ {[%emt 0:0:9]} 27. Bxc2 {[%emt 0:0:5]} Bc8 {[%emt 0:3:3]} 28. Bd3 {[%emt 0:8:9]} Nc6 {[%emt 0:7:5]} 29. Ke3 {[%emt 0:0:22]} a6 {[%emt 0:0:49]} 30. Nd2 {[%emt 0:6:19]} b5 {[%emt 0:0:15]} 31. Nb3 {[%emt 0:2:11]} d5 {[%emt 0:12:20]} 32. Nc5 {[%emt 0:5:47]} Kd6 {[%emt 0:6:39]} 33. Bc2 {[%emt 0:6:12]} (33. a4 $14 {deserves consideration.} )Ne5 {[%emt 0:30:22]} 34. Bb3 {[%emt 0:8:28]} (34. dxe5+ Kxc5 35. exd5 Kxd5 36. Bb3+ Kxe5 37. Bxf7 a5 $15 )Nc4+ {[%emt 0:0:4]} 35. Kd3 {[%emt 0:0:8]} Nb6 {[%emt 0:2:49]} 36. Kc3 {[%emt 0:3:36]} ({White should try} 36. a4 $1 $14 )a5 $11 {[%emt 0:0:29]} 37. a3 {[%emt 0:0:13]} f6 {[%emt 0:1:4]} 38. Ba2 {[%emt 0:9:0]} Kc6 {[%emt 0:2:11]} 39. g3 {[%emt 0:5:37]} Bh3 {[%emt 0:4:18]} 40. Nb3 {[%emt 0:3:5]} Na4+ {[%emt 0:1:24]} 41. Kc2 {[%emt 0:51:38]} Bg2 {[%emt 0:52:55]} (41... dxe4 $11 {remains equal.} 42. fxe4 Kb6 )42. e5 $1 $16 {[%emt 0:1:49]} (42. Nxa5+ $6 Kb6 43. e5 (43. Nb3 dxe4 44. fxe4 Bxe4+ 45. Kd2 Bd5 $11 )fxe5 $11 (43... Kxa5 44. exf6 Nb6 45. f7 $15 ))fxe5 {[%emt 0:0:0]} 43. dxe5 {[%emt 0:0:0]} b4 {[%emt 0:0:0]} (43... Kb6 $16 )44. Nd4+ $18 {[%emt 0:0:0]} (44. Nxa5+ Kb5 )Kc5 {[%emt 0:0:0]} 45. e6 $1 {[%emt 0:0:0]} Kd6 {[%emt 0:0:0]} (45... Kxd4 $2 46. e7 $18 )46. axb4 {[%emt 0:0:0]} axb4 {[%emt 0:0:0]} 47. Bxd5 $1 {[%emt 0:0:0]} Bf1 {[%emt 0:0:0]} (47... Kxd5 48. e7 Kxd4 (48... b3+ $2 49. Nxb3 Nc5 50. Nxc5 $18 )49. e8=Q $18 (49. e8=R $2 Kc4 $19 ))(47... Bh3 $142 )48. Bb3 $18 {[%emt 0:0:0]} Nc5 {[%emt 0:0:0]} 49. Nf5+ {[%emt 0:0:0]} Ke5 {[%emt 0:0:0]} 50. e7 {[%emt 0:0:0]} (50. Nxh6 Nxb3 51. Ng4+ (51. Kxb3 Kxe6 52. Kxb4 Be2 $14 )Kxe6 52. Kxb3 Be2 $11 )Bd3+ {[%emt 0:0:0]} 51. Kd2 {[%emt 0:0:0]} Bb5 {[%emt 0:0:0]} 52. Bc4 {[%emt 0:0:0]} (52. Nxh6 Nxb3+ 53. Kc2 Nd4+ 54. Kc1 Ke6 $19 (54... Nxf3 $2 55. h4 $19 ))Ba4 {[%emt 0:0:0]} 53. Ng7 $1 {[%emt 0:0:0]} (53. Nxh6 Kf6 54. Ng8+ Kg7 $18 )g4 {[%emt 0:0:0] [#]} (53... Kd4 $142 54. Bf7 (54. e8=R Bxe8 55. Nxe8 Kxc4 $15 )b3 )54. f4+ $1 $18 {[%emt 0:0:0]} ({And not} 54. e8=N gxf3 55. Nc7 Ne4+ 56. Kc1 (56. Ke3 f2 $11 )f2 $11 )({Weaker is} 54. e8=Q+ Bxe8 55. Nxe8 gxf3 $16 )(54. fxg4 Ne4+ 55. Kd3 Nd6 $18 )Kd4 {[%emt 0:0:0]} 55. Bf7 {[%emt 0:0:0]} (55. e8=Q Bxe8 56. Nxe8 Ne4+ (56... Kxc4 57. f5 $11 )57. Kc2 Kxc4 $11 )Ne4+ {[%emt 0:0:0]} 56. Ke1 {[%emt 0:0:0]} Kc3 {[%emt 0:0:0]} 57. e8=Q {[%emt 0:0:0]} Bxe8 {[%emt 0:0:0]} 58. Nxe8 {[%emt 0:0:0]} b3 {[%emt 0:0:0]} 59. Bxb3 {[%emt 0:0:0]} Kxb3 {[%emt 0:0:0] [#]} 60. Ke2 $1 {[%emt 0:0:0]} 1-0

[Event "87th Tata Steel Masters 2025"]
[White "Warmerdam,Max"]
[Black "Praggnanandhaa,Rameshbabu"]
[Site "Wijk aan Zee"]
[Round "5.4"]
[Annotator "TA"]
[Result "1/2-1/2"]
[Date "2025.01.22"]
[WhiteElo "2646"]
[BlackElo "2741"]
[PlyCount "79"]
[TimeControl "60"]

{[%evp 16,79,14,12,7,10,37,8,14,12,7,0,0,0,0,0,0,0,0,0,0,0,13,15,9,23,18,14,15,8,7,4,27,22,23,17,49,54,44,0,0,0,18,18,43,0,0,0,0,-4,8,5,0,1,12,0,0,0,8,8,22,0,0,0,0,0]} 1. e4 {[%emt 0:0:4]} e6 {[%emt 0:1:13]} 2. d4 {[%emt 0:0:6]} d5 {[%emt 0:0:4]} 3. exd5 {[%emt 0:0:6]} exd5 {[%emt 0:0:7]} 4. Nf3 {[%emt 0:0:4][%cal Yg1f3,Yf3e5,Ye5c6,Yc6b4,Yb4d3,Yd3c5][%mdl 32]} Nc6 {[%emt 0:0:56]} 5. Nc3 {[%emt 0:0:12]} Nf6 {[%emt 0:3:43][%cal Yg8f6,Yf6e4,Ye4c3][%mdl 32]} 6. Bb5 {[%emt 0:0:15]} Bb4 {[%emt 0:2:6]} 7. O-O {[%emt 0:0:23]} O-O {[%emt 0:2:24]} 8. Bxc6 {[%emt 0:0:5]} bxc6 {[%emt 0:1:31]} 9. Ne5 {[%emt 0:0:5]} Bxc3 {[%emt 0:25:5]} 10. bxc3 {[%emt 0:0:31]} Ne4 {[%emt 0:7:14]} 11. Re1 {[%emt 0:37:6]} (11. f3 $5 Nd6 12. Nxc6 $14 )f6 {[%emt 0:18:54]} 12. Nxc6 {[%emt 0:7:21]} Qd7 {[%emt 0:3:13]} 13. Nb4 {[%emt 0:3:17][%cal Yc3c4]} a5 {[%emt 0:1:17][%cal Ye4c3] White must now prevent ...Nxc3!.} 14. Nd3 {[%emt 0:2:43][%cal Yc3c4]} Nxc3 {[%emt 0:0:19]} 15. Qf3 {[%emt 0:2:18]} Ne4 {[%emt 0:4:54]} 16. Ba3 {[%emt 0:16:7]} Re8 {[%emt 0:4:4]} 17. Nc5 {[%emt 0:0:44] Prevents Qa4.} Qf5 {[%emt 0:0:54]} 18. c4 {[%emt 0:6:39]} Be6 {[%emt 0:2:53]} 19. Nxe4 {[%emt 0:5:34]} Qxf3 {[%emt 0:5:26]} 20. gxf3 {[%emt 0:0:4]} dxe4 {[%emt 0:0:4]} 21. fxe4 {[%emt 0:4:31]} Bxc4 {[%emt 0:0:17]} 22. Rac1 {[%emt 0:3:20]} Bxa2 {[%emt 0:10:36]} 23. Rxc7 {[%emt 0:0:9]} f5 {[%emt 0:1:4]} 24. f3 {[%emt 0:5:50]} fxe4 {[%emt 0:0:9]} 25. fxe4 {[%emt 0:0:11]} Ra6 {[%emt 0:3:5]} 26. Re2 {[%emt 0:4:7]} Bf7 {[%emt 0:7:49]} 27. Kf2 {[%emt 0:2:5]} Rf6+ {[%emt 0:1:32]} 28. Ke1 {[%emt 0:1:52]} Rfe6 {[%emt 0:2:7]} 29. e5 {[%emt 0:0:27]} Rg6 {[%emt 0:0:22]} 30. Rf2 {[%emt 0:1:53]} Bb3 {[%emt 0:0:22]} 31. Kd2 {[%emt 0:1:18]} h6 {[%emt 0:0:23]} 32. Rf3 {[%emt 0:4:6]} a4 {[%emt 0:0:53]} 33. Rg3 {[%emt 0:0:5]} Rxg3 {[%emt 0:1:10]} 34. hxg3 $11 {[%emt 0:0:1][%mdl 4096] Endgame KRB-KRB} Re6 {[%emt 0:0:2]} 35. Ke3 {[%emt 0:2:13] Ke4 is the strong threat.} Rg6 {[%emt 0:0:5]} 36. Kf2 {[%emt 0:0:12]} Rg4 {[%emt 0:1:7]} 37. Rd7 {[%emt 0:0:34]} Re4 {[%emt 0:0:6]} 38. Bb4 {[%emt 0:0:51]} Bd1 {[%emt 0:0:36]} 39. Bc5 {[%emt 0:0:44]} Re2+ {[%emt 0:1:22]} 40. Kf1 {[%emt 0:1:22]} 1/2-1/2